bitfinex-derivatives/quotes_SOLF0:USTF0_20250821
["timestamp","ask_amount","ask_price","bid_price","bid_amount"]
[1755745765373,2.77,189.32,189.18,2.8]
[1755745765779,6.01072614,189.3,189.18,2.8]
[1755745766077,2.94,189.34,189.17,6.01072614]
[1755745766275,2.94,189.39,189.23,3.01]
[1755745766473,6.01072614,189.33,189.18,3.01]
[1755745766673,2.94,189.32,189.18,3.01]
[1755745766869,140.64,189.32,189.18,3.01]
[1755745767070,2.94,189.31,189.18,3.01]
[1755745767275,6.01072614,189.29,189.18,3.01]
[1755745767578,2.94,189.24,189.13,3.01]
[1755745768373,2.94,189.29,189.14,6.62666915]
[1755745768577,2.94,189.29,189.15,9.63666915]
[1755745768776,2.94,189.29,189.16,6.62561324]
[1755745768971,2.94,189.29,189.15,3.01]
[1755745769482,2.94,189.29,189.16,1.98904551]
[1755745769673,2.94,189.29,189.15,3.01]
[1755745769874,2.94,189.28,189.15,3.01]
[1755745770075,2.94,189.28,189.09,3.01]
[1755745770281,2.94,189.24,189.1,6.62792201]
[1755745770481,2.94,189.24,189.09,3.01]
[1755745770677,2.94,189.24,189.11,3.01]
[1755745770874,2.94,189.24,189.13,3.01]
[1755745771078,355.08,189.33,189.15,3.01]
[1755745771079,140.82,189.32,189.15,3.01]
[1755745771275,140.82,189.32,189.16,6.62042078]
[1755745771479,2.94,189.31,189.15,3.01]
[1755745771675,2.94,189.31,189.16,6.6194081]
[1755745771876,2.94,189.31,189.16,5.2859]
[1755745772075,2.94,189.31,189.17,3.01]
[1755745774283,2.94,189.29,189.12,3.01]
[1755745774787,2.94,189.27,189.12,3.01]
[1755745774990,2.94,189.25,189.12,3.01]
[1755745776081,140.74,189.25,189.12,3.01]
[1755745777378,2.94,189.25,189.14,5.2862]
[1755745777584,143.73072614,189.28,189.15,3.01]
[1755745777884,2.94,189.28,189.15,3.01]
[1755745778885,140.72,189.28,189.15,3.01]
[1755745779081,140.72,189.28,189.15,8.2962]
[1755745779382,140.72,189.28,189.15,3.01]
[1755745779582,2.94,189.27,189.15,3.01]
[1755745780789,140.76,189.27,189.15,3.01]
[1755745781490,2.94,189.27,189.15,3.01]
[1755745781688,137.76,189.26,189.15,3.01]
[1755745782088,2.94,189.25,189.1,3.01]
[1755745782293,2.94,189.25,189.11,6.65171161]
[1755745782481,2.94,189.25,189.12,6.65171161]
[1755745782683,2.94,189.25,189.1,3.01]
[1755745782886,2.94,189.25,189.12,3.01]
[1755745783093,2.94,189.25,189.14,3.01]
[1755745783494,137.66,189.28,189.16,3.01]
[1755745783795,2.94,189.29,189.17,4.66032957]
[1755745783996,2.94,189.29,189.16,3.01]
[1755745784295,2.94,189.29,189.17,6.65004435]
[1755745784491,2.94,189.29,189.18,1.99059594]
[1755745784695,2.94,189.29,189.19,9.66187167]
[1755745784893,2.94,189.29,189.19,3.01]
[1755745785491,2.94,189.29,189.16,3.65060719]
[1755745785693,2.94,189.29,189.17,6.6534531]
[1755745785890,2.94,189.29,189.18,6.6534531]
[1755745786093,2.94,189.29,189.16,6.66060719]
[1755745786395,6.59060719,189.29,189.17,6.65505426]
[1755745786597,6.59060719,189.29,189.18,6.65505426]
[1755745786798,6.59060719,189.29,189.16,6.66060719]
[1755745786987,6.59060719,189.29,189.17,6.65587041]
[1755745787192,6.59060719,189.29,189.18,6.65587741]
[1755745787392,6.59060719,189.29,189.16,11.94650719]
[1755745787594,2.94,189.29,189.19,3.65060719]
[1755745787795,2.94,189.29,189.2,6.65634666]
[1755745788100,2.94,189.38,189.25,3.65060719]
[1755745788698,2.94,189.38,189.26,6.64915662]
[1755745788898,2.94,189.38,189.25,3.65060719]
[1755745789099,2.94,189.38,189.27,3.01]
[1755745790601,2.94,189.38,189.28,6.64864908]
[1755745790802,2.94,189.38,189.29,6.64691646]
[1755745791101,137.6,189.41,189.27,3.01]
[1755745791301,137.6,189.41,189.29,3.01]
[1755745791498,2.94,189.42,189.3,6.64730839]
[1755745791804,355.22,189.44,189.34,3.01]
[1755745792095,355.22,189.44,189.34,8.2908]
[1755745792489,115.7636245,189.46,189.34,3.01]
[1755745792691,358.12,189.54,189.37,3.01]
[1755745792892,358.12,189.54,189.28,6.00331766]
[1755745792893,358.12,189.54,189.4,6.00331766]
[1755745793100,358.12,189.54,189.41,9.64544939]
[1755745793298,2.94,189.54,189.44,6.00331766]
[1755745793594,137.72,189.58,189.45,3.01]
[1755745794196,137.72,189.58,189.45,8.2877]
[1755745794603,137.72,189.58,189.45,3.01]
[1755745795400,0.91852086,189.62,189.49,6.00331766]
[1755745795701,358.12,189.64,189.5,3.01]
[1755745796897,2.75,189.63,189.5,3.01]
[1755745798599,2.75,189.6,189.44,2.96]
[1755745798803,137.56,189.59,189.44,2.96]
[1755745799003,2.75,189.58,189.44,2.96]
[1755745800309,2.75,189.55,189.43,149.72638697]
[1755745801601,137.58,189.58,189.44,2.96]
[1755745801797,143.58331766,189.58,189.44,2.96]
[1755745802002,2.75,189.57,189.44,2.96]
[1755745802704,6.00331766,189.62,189.44,2.96]
[1755745802906,137.7,189.61,189.44,2.96]
[1755745803910,2.75,189.6,189.44,2.96]
[1755745804408,2.75,189.6,189.46,2.96]
[1755745804799,2.75,189.6,189.43,149.72638697]
[1755745804800,2.75,189.57,189.43,149.72638697]
[1755745805706,2.75,189.57,189.44,2.96]
[1755745806103,8.75331766,189.62,189.45,2.96]
[1755745807110,8.75331766,189.62,189.47,2.96]
[1755745807306,355.18,189.64,189.49,2.96]
[1755745808108,2.75,189.63,189.49,2.96]
[1755745808414,137.78,189.68,189.52,2.96]
[1755745808807,2.75,189.69,189.56,2.96]
[1755745809513,2.75,189.69,189.55,6.00331766]
[1755745809514,354.76,189.74,189.6,8.2336]
[1755745810007,2.75,189.76,189.64,2.96]
[1755745810601,354.68,189.84,189.64,2.96]
[1755745810602,2.75,189.81,189.64,2.96]
[1755745810807,2.75,189.81,189.68,2.96]
[1755745811706,2.75,189.86,189.68,2.96]
[1755745812014,2.75,189.86,189.72,2.96]
[1755745814314,2.75,189.84,189.67,2.96]
[1755745814516,2.75,189.8,189.63,2.96]
[1755745814709,2.75,189.8,189.65,6.00331766]
[1755745814917,2.75,189.8,189.66,2.96]
[1755745816013,2.75,189.8,189.67,6.00331766]
[1755745816410,2.75,189.88,189.72,2.96]
[1755745817919,2.75,189.86,189.72,2.96]
[1755745818416,8.75331766,189.86,189.72,2.96]
[1755745819113,2.75,189.85,189.72,2.96]
[1755745820916,2.75,189.85,189.72,8.2303]
[1755745821223,2.75,189.85,189.72,2.96]
[1755745821712,2.75,189.85,189.72,8.2303]
[1755745822110,2.75,189.85,189.72,2.96]
[1755745823013,8.83973805,190.19,189.76,2.96]
[1755745823014,6.00331766,189.95,189.76,2.96]
[1755745823214,2.75,189.96,189.83,6.00331766]
[1755745823518,2.75,189.96,189.84,2.96]
[1755745823720,2.75,190.02,189.84,2.96]
[1755745823915,2.75,190.02,189.88,2.96]
[1755745825421,3.66630791,190.06,189.88,2.96]
[1755745825622,2.75,190.06,189.92,2.96]
[1755745826815,2.75,190.06,189.95,2.78]
[1755745828324,0.91600642,190.13,189.95,2.78]
[1755745828325,2.73,190.12,189.95,2.78]
[1755745829122,2.73,190.12,189.96,2.78]
[1755745829325,2.73,190.12,189.96,8.0436]
[1755745830126,2.73,190.12,189.97,5.2634]
[1755745830426,2.73,190.12,189.96,2.78]
[1755745830722,2.73,190.19,190.05,2.78]
[1755745830922,2.73,190.25,190.08,6.00331766]
[1755745831227,2.73,190.25,190.09,2.78]
[1755745831424,2.73,190.25,190.12,6.00331766]
[1755745831726,2.73,190.25,190.09,2.78]
[1755745832117,2.73,190.22,190.02,6.00331766]
[1755745832429,2.73,190.18,190.0,2.78]
[1755745832625,2.73,190.16,190.0,2.78]
[1755745832921,2.73,190.16,190.01,6.00331766]
[1755745833118,2.73,190.16,189.97,6.00331766]
[1755745833316,140.94,190.17,190.0,2.78]
[1755745833525,2.73,190.16,190.0,2.78]
[1755745833727,2.73,190.16,190.01,5.2622]
[1755745833923,2.73,190.16,190.0,2.78]
[1755745834128,2.73,190.09,189.94,2.78]
[1755745834316,2.73,190.05,189.87,2.78]
[1755745834722,2.73,190.01,189.87,2.78]
[1755745835321,2.73,189.97,189.81,2.78]
[1755745835521,141.18,189.96,189.81,2.78]
[1755745835722,2.73,189.95,189.81,2.78]
[1755745836320,141.32,189.98,189.81,2.78]
[1755745837029,2.73,189.97,189.81,2.78]
[1755745837526,147.32331766,189.98,189.81,2.78]
[1755745837527,2.73,189.93,189.81,2.78]
[1755745840031,2.73,189.93,189.76,362.64331766]
[1755745840232,2.73,189.93,189.77,2.78]
[1755745841425,142.09663374,189.98,189.64,353.94]
[1755745841426,2.73,189.88,189.64,353.94]
[1755745841634,2.73,189.84,189.67,2.78]
[1755745842633,2.73,189.76,189.58,2.78]
[1755745843224,2.73,189.72,189.58,2.78]
[1755745843428,356.69,189.78,189.62,2.78]
[1755745843928,356.69,189.78,189.65,6.00331766]
[1755745844129,356.69,189.78,189.55,2.78]
[1755745844426,2.73,189.72,189.55,2.78]
[1755745844637,353.96,189.78,189.55,2.78]
[1755745844638,6.00331766,189.69,189.55,2.78]
[1755745844933,2.73,189.7,189.55,2.78]
[1755745845233,2.73,189.7,189.58,2.78]
[1755745845721,2.73,189.77,189.62,2.78]
[1755745846221,0.91721357,189.88,189.56,141.96]
[1755745846222,2.73,189.82,189.66,2.78]
[1755745846422,2.73,189.82,189.7,2.78]
[1755745846630,357.70721357,189.88,189.7,2.78]
[1755745846930,356.79,189.88,189.74,2.78]
[1755745847228,2.73,189.88,189.74,2.78]
[1755745847422,2.73,189.93,189.77,6.00331766]
[1755745847625,8.73331766,189.93,189.78,2.78]
[1755745847928,2.73,189.92,189.73,8.78331766]
[1755745848127,2.73,189.88,189.73,2.78]
[1755745848429,2.73,189.84,189.67,2.78]
[1755745849422,0.03549397,189.77,189.74,0.0379108]
[1755745849629,2.73,189.75,189.74,0.0379108]
[1755745849833,2.73,189.75,189.6,11.27691766]
[1755745850031,2.73,189.8,189.61,4.80462091]
[1755745850236,6.00331766,189.77,189.62,2.02462091]
[1755745850529,6.00331766,189.77,189.5,2.78]
[1755745850530,2.73,189.68,189.5,2.78]
[1755745850731,6.00331766,189.65,189.5,2.78]
[1755745851334,2.73,189.64,189.5,2.78]
[1755745851530,2.73,189.64,189.45,8.78331766]
[1755745851737,6.00331766,189.61,189.46,2.03297304]
[1755745852038,2.73,189.6,189.45,2.78]
[1755745852939,151.93331766,189.65,189.47,2.78]
[1755745853135,8.73331766,189.65,189.47,2.78]
[1755745853343,8.73331766,189.65,189.48,2.03195124]
[1755745853638,151.93331766,189.65,189.47,2.78]
[1755745854036,8.73331766,189.65,189.48,2.03201785]
[1755745854228,2.73,189.63,189.47,2.78]
[1755745854735,2.73,189.6,189.43,149.72638697]
[1755745854939,2.73,189.6,189.44,2.03225474]
[1755745855135,2.73,189.6,189.43,149.72638697]
[1755745855529,2.73,189.6,189.45,6.00331766]
[1755745855735,2.73,189.6,189.46,2.02961399]
[1755745855935,2.73,189.6,189.45,6.00331766]
[1755745856137,2.73,189.6,189.46,2.02934318]
[1755745856441,2.73,189.6,189.49,5.2764]
[1755745857045,2.73,189.6,189.5,5.2764]
[1755745857343,2.73,189.6,189.45,6.00331766]
[1755745857541,2.73,189.6,189.46,6.62060427]
[1755745857841,2.73,189.6,189.47,2.02581282]
[1755745858143,2.73,189.6,189.45,6.00331766]
[1755745858341,2.73,189.6,189.5,5.2763]
[1755745859545,148.72331766,189.65,189.48,2.84]
[1755745859546,145.51,189.65,189.49,6.00331766]
[1755745860145,2.83,189.64,189.43,152.56638697]
[1755745860352,2.83,189.6,189.43,152.56638697]
[1755745861246,2.83,189.64,189.48,2.84]
[1755745861956,6.00331766,189.6,189.43,152.56638697]
[1755745862149,2.83,189.59,189.43,152.56638697]
[1755745862562,2.83,189.59,189.44,2.84]
[1755745862755,2.83,189.59,189.45,6.00331766]
[1755745862958,2.83,189.59,189.44,2.84]
[1755745863659,2.83,189.59,189.38,2.84]
[1755745864961,2.83,189.59,189.42,2.84]
[1755745865462,2.83,189.59,189.36,62.0]
[1755745865463,2.83,189.59,189.46,2.84]
[1755745865762,8.83331766,189.59,189.41,8.84331766]
[1755745866656,8.83331766,189.59,189.42,2.84]
[1755745866855,2.83,189.59,189.42,2.84]
[1755745867058,2.83,189.59,189.45,5.2777]
[1755745867357,2.83,189.59,189.42,2.84]
[1755745867752,2.83,189.59,189.49,0.03999668]
[1755745867958,0.03870515,189.52,189.49,0.03999668]
[1755745868164,2.83,189.59,189.49,0.03999668]
[1755745868556,0.03721884,189.52,189.49,0.03999668]
[1755745868752,2.83,189.59,189.49,0.03999668]
[1755745869158,0.03949793,189.52,189.49,2.87999668]
[1755745869462,2.83,189.59,189.5,2.84]
[1755745869855,0.03874851,189.52,189.49,0.03999668]
[1755745870055,2.83,189.5,189.49,0.03999668]
[1755745870456,3.35,189.5,189.34,146.52]
[1755745870661,2.83,189.5,189.34,146.52]
[1755745870857,2.83,189.55,189.35,2.84]
[1755745871265,2.83,189.51,189.35,2.84]
[1755745871666,2.83,189.51,189.34,143.68]
[1755745871667,2.83,189.51,189.38,2.84]
[1755745871859,0.03793895,189.45,189.38,2.84]
[1755745874459,0.03793895,189.45,189.39,5.2792]
[1755745874666,0.03793895,189.45,189.4,2.84]
[1755745874859,0.03793895,189.45,189.42,2.84]
[1755745875162,2.83,189.55,189.44,2.84]
[1755745875370,2.83,189.63,189.44,2.84]
[1755745875767,2.83,189.63,189.47,6.00331766]
[1755745875965,2.83,189.63,189.48,2.84]
[1755745876268,357.49,189.68,189.52,2.84]
[1755745876766,5.91948382,189.88,189.56,2.84]
[1755745876767,2.83,189.74,189.56,2.84]
[1755745877165,354.7,189.81,189.51,143.78]
[1755745877166,8.83331766,189.8,189.64,2.84]
[1755745877470,2.83,189.8,189.64,2.84]
[1755745877669,2.83,189.8,189.68,2.84]
[1755745878164,6.00331766,189.8,189.63,2.84]
[1755745878367,2.83,189.75,189.63,2.84]
[1755745878663,2.83,189.75,189.44,15.83]
[1755745878664,2.83,189.63,189.35,6.00331766]
[1755745878862,6.00331766,189.52,189.31,0.91832696]
[1755745879056,15.83,189.61,189.08,4.45761114]
[1755745879057,6.00331766,189.35,189.08,4.45761114]
[1755745879264,6.00331766,189.35,189.02,8.93583988]
[1755745879265,6.00331766,189.24,189.1,0.91937018]
[1755745879562,6.00331766,189.11,188.85,2.17761114]
[1755745879762,6.00331766,189.11,188.86,6.00331766]
[1755745879958,5.91948382,189.35,188.79,8.93583988]
[1755745880157,20.62605545,189.55,188.55,6.00331766]
[1755745880158,6.00331766,188.84,188.55,6.00331766]
[1755745880356,2.83,189.17,188.79,6.00331766]
[1755745880560,2.83,189.12,188.8,354.58]
[1755745880757,8.83331766,189.12,188.8,354.58]
[1755745880963,2.83,189.12,188.94,6.00331766]
[1755745881266,2.83,189.12,188.9,185.8]
[1755745881569,2.83,189.12,188.89,6.00331766]
[1755745882066,2.83,189.12,188.93,6.00331766]
[1755745882266,2.83,189.12,188.98,6.00331766]
[1755745882474,2.83,189.23,188.97,9.99319342]
[1755745882765,2.83,189.23,188.95,9.99319342]
[1755745882961,2.83,189.23,189.01,9.99319342]
[1755745883163,2.83,189.23,189.02,178.08]
[1755745883367,2.83,189.23,189.03,187.12]
[1755745883562,2.83,189.23,189.06,9.99319342]
[1755745883768,2.83,189.23,189.07,416.94]
[1755745883967,2.83,189.23,189.07,354.94]
[1755745884358,2.83,189.2,188.96,9.99319342]
[1755745885171,2.83,189.2,188.96,196.95319342]
[1755745885564,2.83,189.2,189.01,9.99319342]
[1755745886161,2.83,189.2,189.02,186.74]
[1755745886367,3.02,189.27,189.06,9.99319342]
[1755745886668,3.02,189.27,189.11,9.99319342]
[1755745886868,9.99319342,189.37,189.12,417.1]
[1755745887172,3.02,189.33,189.12,417.1]
[1755745887465,3.02,189.31,189.12,355.1]
[1755745887671,15.83,189.41,189.12,355.1]
[1755745887672,3.02,189.26,189.12,355.1]
[1755745889872,9.99319342,189.22,189.01,9.99319342]
[1755745890173,3.02,189.21,189.02,185.7]
[1755745890574,3.02,189.21,189.01,365.19319342]
[1755745890867,3.02,189.21,189.03,185.6]
[1755745891073,3.02,189.21,189.04,185.44]
[1755745891474,3.02,189.21,189.05,195.33319342]
[1755745891976,3.02,189.28,189.09,9.99319342]
[1755745892368,3.02,189.28,189.13,9.99319342]
[1755745892562,3.02,189.28,189.14,185.06]
[1755745892770,9.99319342,189.34,189.14,540.3]
[1755745892969,3.02,189.34,189.15,9.99319342]
[1755745893468,3.02,189.34,189.16,184.84]
[1755745893671,3.02,189.34,189.15,9.99319342]
[1755745893867,3.02,189.34,189.16,184.62]
[1755745894272,3.02,189.34,189.17,5.2854]
[1755745894475,13.01319342,189.34,189.14,355.24]
[1755745894777,3.02,189.33,189.14,355.24]
[1755745894981,3.02,189.33,189.14,539.62]
[1755745895172,9.99319342,189.3,189.14,539.62]
[1755745895477,3.02,189.29,189.14,539.32]
[1755745895680,3.02,189.29,189.15,184.08]
[1755745895870,0.52,189.28,188.95,5.2916]
[1755745896179,3.02,189.15,188.9,9.99319342]
[1755745896376,3.02,189.15,188.94,0.92052533]
[1755745896571,3.02,189.15,189.01,5.2898]
[1755745896771,3.02,189.15,188.96,355.26]
[1755745897271,9.99319342,189.11,188.96,355.26]
[1755745897571,3.02,189.15,189.0,5.2902]
[1755745897771,3.02,189.15,188.96,543.78]
[1755745897972,3.02,189.15,188.96,355.26]
[1755745898173,3.02,189.1,188.96,355.26]
[1755745900379,9.99319342,189.06,188.92,187.52]
[1755745900779,9.99319342,189.06,188.86,355.36]
[1755745900976,3.02,189.05,188.86,355.36]
[1755745901282,3.02,189.0,188.75,9.99319342]
[1755745901477,15.83,189.32,188.9,0.92073235]
[1755745901776,3.02,189.22,189.03,9.99319342]
[1755745901976,3.02,189.44,189.18,9.99319342]
[1755745902182,3.02,189.44,189.0,9.99319342]
[1755745902183,15.91267724,189.68,189.42,2.91]
[1755745902388,355.48,189.67,189.34,2.91]
[1755745902674,9.99319342,189.74,189.44,2.91]
[1755745902875,355.48,189.73,189.44,2.91]
[1755745903074,9.99319342,189.77,189.49,2.91]
[1755745903280,9.99319342,189.72,189.42,2.91]
[1755745903480,9.99319342,189.66,189.42,2.91]
[1755745903672,9.99319342,189.61,189.42,2.91]
[1755745903881,355.48,189.6,189.38,2.91]
[1755745904376,355.48,189.6,189.4,2.91]
[1755745904578,0.91829061,189.69,189.45,2.91]
[1755745904772,355.48,189.71,189.5,2.91]
[1755745904975,355.48,189.71,189.55,2.91]
[1755745906382,3.02,189.7,189.45,2.91]
[1755745906580,0.03657529,189.65,189.45,2.91]
[1755745906773,0.03657529,189.65,189.61,0.03902842]
[1755745906979,3.02,189.64,189.45,2.91]
[1755745907186,3.02,189.59,189.34,2.91]
[1755745907380,3.02,189.53,189.34,2.91]
[1755745907572,355.24,189.58,189.34,2.91]
[1755745907774,9.99319342,189.58,189.34,2.91]
[1755745907973,9.99319342,189.58,189.37,2.91]
[1755745908374,0.03925319,189.48,189.37,2.91]
[1755745909176,3.02,189.59,189.37,2.91]
[1755745912887,9.99319342,189.58,189.37,2.91]
[1755745913087,3.02,189.57,189.37,2.91]
[1755745913283,3.02,189.52,189.29,9.99319342]
[1755745913484,3.02,189.52,189.3,2.91]
[1755745913685,9.99319342,189.49,189.3,2.91]
[1755745914185,567.86,189.48,189.3,2.91]
[1755745914387,3.02,189.47,189.3,2.91]
[1755745914584,9.99319342,189.45,189.3,2.91]
[1755745915890,9.99319342,189.45,189.23,3.02]
[1755745916191,2.93,189.44,189.23,3.02]
[1755745916581,2.93,189.44,189.24,9.99319342]
[1755745916786,2.93,189.44,189.25,3.02]
[1755745918087,9.99319342,189.43,189.25,3.02]
[1755745918284,213.55,189.44,189.25,3.02]
[1755745918589,2.93,189.44,189.25,3.02]
[1755745918885,2.93,189.36,189.19,3.02]
[1755745920593,354.94,189.42,189.23,3.02]
[1755745921185,9.99319342,189.39,189.18,9.99319342]
[1755745921390,2.93,189.34,189.16,3.02]
[1755745921693,9.99319342,189.31,189.11,0.91860573]
[1755745921888,2.93,189.3,189.09,3.02]
[1755745922198,548.54,189.29,189.09,3.02]
[1755745922487,2.93,189.3,189.1,9.99319342]
[1755745922692,20.24,189.29,189.1,9.99319342]
[1755745922894,2.93,189.3,189.1,9.99319342]
[1755745923089,209.26,189.29,189.1,9.99319342]
[1755745923593,2.93,189.3,189.1,9.99319342]
[1755745923793,2.93,189.3,189.14,9.99319342]
[1755745924886,2.93,189.3,189.15,3.02]
[1755745925285,355.06,189.34,189.15,3.02]
[1755745925584,2.93,189.36,189.18,9.99319342]
[1755745925785,2.93,189.36,189.22,9.99319342]
[1755745926193,2.93,189.52,189.31,3.02]
[1755745926589,2.93,189.52,189.38,9.99319342]
[1755745926988,2.93,189.58,189.38,9.99319342]
[1755745927192,2.93,189.58,189.42,9.99319342]
[1755745927897,2.93,189.58,189.38,9.99319342]
[1755745928099,2.93,189.58,189.34,13.01319342]
[1755745928100,207.64,189.58,189.34,13.01319342]
[1755745928289,2.93,189.57,189.34,13.01319342]
[1755745928591,2.93,189.55,189.34,3.02]
[1755745928799,2.93,189.51,189.34,3.02]
[1755745929189,2.93,189.51,189.34,13.01319342]
[1755745930798,2.93,189.56,189.37,3.02]
[1755745931101,2.93,189.56,189.4,9.99319342]
[1755745931697,2.93,189.56,189.37,3.02]
[1755745933604,205.5,189.55,189.37,3.02]
[1755745934102,2.93,189.56,189.37,3.02]
[1755745934304,204.7,189.55,189.37,3.02]
[1755745935805,2.93,189.56,189.37,3.02]
[1755745936004,204.68,189.55,189.37,3.02]
[1755745936500,2.93,189.56,189.37,3.02]
[1755745936697,2.93,189.56,189.44,0.03950207]
[1755745937099,2.93,189.56,189.4,9.99319342]
[1755745937495,2.93,189.56,189.48,0.03995573]
[1755745938900,0.03592796,189.54,189.48,0.03995573]
[1755745940103,3.45,189.53,189.25,3.01]
[1755745940301,3.45,189.53,189.17,3.01]
[1755745940302,9.99319342,189.39,189.17,3.01]
[1755745940506,206.41,189.38,189.17,3.01]
[1755745940706,2.93,189.37,189.17,3.01]
[1755745940901,9.99319342,189.34,189.17,3.01]
[1755745941106,2.93,189.32,189.17,3.01]
[1755745941404,0.03549004,189.27,189.17,3.01]
[1755745941597,0.03549004,189.27,189.11,3.01]
[1755745942105,9.99319342,189.3,189.11,3.01]
[1755745942309,0.03379282,189.21,189.11,3.01]
[1755745947110,0.03379282,189.21,189.07,0.92000211]
[1755745947316,0.03379282,189.21,189.01,354.8]
[1755745947317,0.03379282,189.21,189.05,2.85]
[1755745947613,2.95,189.23,189.05,3.7702454]
[1755745947914,0.03936474,189.15,189.05,3.7702454]
[1755745948114,0.03936474,189.15,189.05,2.85]
[1755745955710,0.03936474,189.15,189.03,0.92029407]
[1755745956110,2.95,189.18,189.03,0.92029407]
[1755745956311,2.95,189.18,188.99,2.85]
[1755745956312,2.95,189.16,188.99,2.85]
[1755745956611,0.03704002,189.11,188.99,2.85]
[1755745957016,2.95,189.11,188.99,2.85]
[1755745957520,0.03736693,189.07,188.99,2.85]
[1755745957914,0.03736693,189.07,188.95,0.92063492]
[1755745958111,0.03736693,189.07,188.93,2.85]
[1755745958315,2.95,189.07,188.93,2.85]
[1755745958516,2.95,189.14,188.94,2.85]
[1755745958715,0.03578586,189.02,188.94,2.85]
[1755745959013,550.9,189.15,188.94,2.85]
[1755745959014,2.95,189.11,188.94,2.85]
[1755745959418,0.04047853,189.0,188.94,2.85]
[1755745959624,2.95,189.06,188.94,2.85]
[1755745960117,0.04048074,188.99,188.91,2.85]
[1755745962412,0.04048074,188.99,188.9,0.92089072]
[1755745962616,0.04048074,188.99,188.86,2.85]
[1755745963015,2.95,189.01,188.86,2.85]
[1755745963216,365.39319342,189.0,188.84,0.92124421]
[1755745963421,0.03834212,188.94,188.77,2.85]
[1755745963718,0.03834212,188.94,188.79,0.92148815]
[1755745964026,9.99319342,188.96,188.79,0.92148815]
[1755745964226,0.03681849,188.88,188.79,0.92148815]
[1755745966028,0.03681849,188.88,188.77,2.85]
[1755745967718,0.03681849,188.88,188.74,0.9216834]
[1755745967924,2.95,188.87,188.73,2.85]
[1755745968324,8.98767208,188.87,188.73,2.85]
[1755745968525,0.03373762,188.82,188.73,2.85]
[1755745970536,0.03373762,188.82,188.77,2.85]
[1755745970725,0.03373762,188.82,188.73,2.85]
[1755745971031,0.03373762,188.82,188.71,0.92190315]
[1755745971230,0.03373762,188.82,188.67,2.85]
[1755745971634,2.95,188.84,188.67,2.85]
[1755745972135,0.03380882,188.76,188.7,6.03767208]
[1755745972326,0.03380882,188.76,188.72,2.85]
[1755745972529,0.03380882,188.76,188.7,6.03767208]
[1755745972835,0.03380882,188.76,188.74,2.85]
[1755745973030,2.95,188.89,188.75,2.85]
[1755745974132,2.95,188.89,188.69,6.03767208]
[1755745974531,2.95,188.89,188.7,2.85]
[1755745974940,2.95,188.89,188.73,6.03767208]
[1755745977135,2.95,188.89,188.7,2.85]